Cogmind - Beta 13 @@@ ROGUE MODE // 2024.04.14 @ 18:05:00 Player: Strawberry Result: Destroyed by L-31 Rogue with Katana Performance ------------- Evolutions (2) 1000 Regions Visited (3) 600 Robots Destroyed (52) 260 Value Destroyed (1679) 1679 Prototype IDs (3) 60 Alien Tech Used (0) 0 Bonus (179) 179 TOTAL SCORE: 3778 Bonus ------- High Alert Combat Kills 179 Cogmind --------- Core Integrity 0/550 Matter 77/300 Energy 49/100 System Corruption 18% Temperature Cool (0) Movement Core (800) Ox15 Location -8/Materials Parts ------- > --- POWER (1) -------- (None) > --- PROPULSION (4) --- (None) > --- UTILITY (4) ------ High-capacity Storage Unit Advanced Targeting Computer > --- WEAPON (2) ------- Heavy Ion Cannon > --- INVENTORY (20) --- Ion Engine Ion Engine Ion Engine Improved Ion Engine Structural Scanner Terrain Scan Processor Kinecellerator Kinecellerator Advanced ECM Suite Advanced ECM Suite Improved Medium Laser Pulse Rifle Pulse Rifle Pulse Rifle Advanced Beam Rifle EMP Blaster EMP Blaster Peak State ------------ > --- POWER ------------ Reinforced Ion Engine > --- PROPULSION ------- Aluminum Leg Aluminum Leg Aluminum Leg > --- UTILITY ---------- High-capacity Storage Unit Improved Targeting Computer Advanced Targeting Computer Shield Generator > --- WEAPON ----------- Pulse Rifle Heavy Ion Cannon > --- INVENTORY -------- Ion Engine Ion Engine Ion Engine Improved Ion Engine Improved Ion Engine Structural Scanner Terrain Scan Processor Kinecellerator Kinecellerator Advanced ECM Suite Advanced ECM Suite Improved Medium Laser Pulse Rifle Pulse Rifle Advanced Beam Rifle Heavy Ion Cannon EMP Blaster EMP Blaster Rocket Launcher Mining Laser [Rating: 25] Favorites ----------- Power Ion Engine Engine Ion Engine Propulsion Light Treads Treads Light Treads Leg Aluminum Leg Utility Structural Scanner Device Structural Scanner Storage Large Storage Unit Processor Improved Targeting Computer Weapon Light Assault Rifle Energy Gun Medium Laser Energy Cannon Heavy Ion Cannon Ballistic Gun Light Assault Rifle Launcher EMP Blaster Special Weapon Mining Laser Build | -11 -10 -9 -8 ------- Run | Yrd Mat Mat Mat Slots Evolved 4 | . . 2 2 Power . | . . . . Propulsion 2 | . . 1 1 Utility 2 | . . 1 1 Weapon . | . . . . Parts Attached 59 | 7 6 7 39 Power 7 | 2 1 1 3 Engine 7 | 2 1 1 3 Core . | . . . . Reactor . | . . . . Propulsion 15 | 2 2 1 10 Treads 8 | 2 2 1 3 Leg 7 | . . . 7 Wheel . | . . . . Hover . | . . . . Flight . | . . . . Utility 9 | 1 2 2 4 Device 2 | . 1 . 1 Storage 3 | 1 1 . 1 Processor 4 | . . 2 2 Hackware . | . . . . Protection . | . . . . Artifact . | . . . . Weapon 28 | 2 1 3 22 Energy Gun 9 | 1 1 2 5 Energy Cannon 3 | . . . 3 Ballistic Gun 4 | 1 . 1 2 Ballistic Cannon . | . . . . Launcher 10 | . . . 10 Special Weapon 2 | . . . 2 Impact Weapon . | . . . . Slashing Weapon . | . . . . Piercing Weapon . | . . . . Special Melee Weapon . | . . . . Unidentified Prototypes 3 | . . 2 1 Corrupted Parts 2 | . . . 2 System Corruption 18 | . . . 18 Parts Lost 17 | . . . 17 Power 1 | . . . 1 Propulsion 9 | . . . 9 Utility 3 | . . . 3 Weapon 4 | . . . 4 Highest Loss Streak 7 | . . . 7 To Critical Strikes . | . . . . Average Slot Usage (%) 93 | . 97 95 90 Engine 11 | . 14 11 8 Treads 20 | . 27 28 10 Leg 7 | . . . 18 Device 10 | . 12 11 7 Storage 11 | . 14 11 9 Processor 10 | . . 10 17 Energy Gun 8 | . 14 11 3 Ballistic Gun 8 | . 14 11 3 Launcher 3 | . . . 7 Naked Turns . | . . . . Heaviest Build 64 | 13 29 34 64 Greatest Support 80 | 40 40 60 80 Greatest Overweight (x) 15 | . . . 15 Average Overweight (x) . | . . . . Largest Inventory Capacity 20 | 8 15 15 20 Average Capacity 15 | 7 13 15 18 Most Carried 20 | 6 15 15 20 Average Carried 13 | 4 10 14 16 Final Capacity 20 | 8 15 15 20 Final Carried 17 | 6 15 15 17 Class Distribution -------------------- 81% | Mutant 18% | Scavenger-Mutant Dominant Class ---------------- Mutant | -10/Materials Mutant | -9/Materials Mutant | -8/Materials Resources | -11 -10 -9 -8 ----------- Run | Yrd Mat Mat Mat Matter Collected 1112 | 255 66 142 649 Remotely . | . . . . Salvage Created 1882 | . 167 344 1371 Parts 125 | . 14 22 89 Haulers Intercepted 1 | . . 1 . Recyclers Shooed 2 | . . . 2 Parts Field Recycled . | . . . . Retrieved Matter . | . . . . Parts Self-Destructed . | . . . . Prevented . | . . . . Kills | -11 -10 -9 -8 ------- Run | Yrd Mat Mat Mat Combat Hostiles Destroyed 39 | . 5 6 28 Guns 17 | . 5 6 6 Cannons 3 | . . . 3 AOE 18 | . . . 18 Classes Destroyed 11 | . 3 2 6 Worker 1 | . . . 1 Builder 7 | . 1 . 6 Hauler 1 | . . 1 . Recycler 1 | . . . 1 Operator 1 | . . . 1 Watcher 2 | . . . 2 Swarmer 6 | . 2 . 4 Grunt 23 | . 3 4 16 Brawler 1 | . . . 1 Duelist 1 | . . . 1 Sentry 8 | . . 2 6 Best Kill Streak 9 | . 4 2 9 Combat Bots Only 6 | . 3 2 6 Max Kills in Single Turn 2 | . 2 1 2 Gunslinging 1 | . 1 . . Exploded 2 | . . . 2 Melee . | . . . . Uniques/NPCs Destroyed . | . . . . Combat | -11 -10 -9 -8 -------- Run | Yrd Mat Mat Mat Hostile Shots Fired 281 | . 43 33 205 Missed 71 | . 9 12 50 Damage Taken 3401 | . 366 272 2763 Core 660 | . 45 40 575 Absorbed by Shields 150 | . . . 150 Regen/Repaired (Parts) 214 | . 132 . 82 Core Remaining (%) 90 | 100 82 90 . Volleys Fired 123 | . 21 20 82 Largest 2 | . 2 2 2 Hottest 128 | . 70 79 128 Shots Fired 220 | . 40 40 140 Gun 149 | . 40 40 69 Cannon 20 | . . . 20 Launcher 51 | . . . 51 Special . | . . . . Kinetic 90 | . 21 20 49 Thermal 71 | . 15 16 40 Explosive 23 | . . . 23 Electromagnetic 36 | . 4 4 28 Robot Hit Streak 21 | . 16 12 21 Robot Miss Streak 5 | . 5 2 3 Penetration Max . | . . . . Secondary Targets 4 | . 2 1 1 Max Gunslinging Chain 1 | . 1 1 1 Shots Hit Robots 141 | . 25 29 87 Core Hits 106 | . 12 13 81 Critical Kills . | . . . . Critical Parts Destroyed 1 | . . . 1 Critical Strikes 2 | . . 1 1 Burn 1 | . . 1 . Destroy 1 | . . . 1 Melee Attacks . | . . . . Impact . | . . . . Slashing . | . . . . Piercing . | . . . . Sneak Attacks . | . . . . Combat Hostiles . | . . . . Follow-up Attacks . | . . . . Damage Inflicted 4315 | . 308 392 3615 Guns 1466 | . 263 392 811 Cannons 451 | . . . 451 Explosions 2392 | . 45 . 2347 Melee . | . . . . Ramming 6 | . . . 6 Kinetic 883 | . 83 212 588 Thermal 1025 | . 173 142 710 Explosive 1222 | . . . 1222 Electromagnetic 1179 | . 52 38 1089 Impact . | . . . . Slashing . | . . . . Piercing . | . . . . Highest Corruption 18 | . . . 18 Average Corruption 17 | . . . 17 Corruption Purged . | . . . . Corruption Blocked . | . . . . Effects 24 | . . . 24 Message Errors 4 | . . . 4 Matter Fused 9 | . . . 9 Heat Flow Errors 3 | . . . 3 Energy Discharges 2 | . . . 2 Data Loss (minor) 4 | . . . 4 Misfires 1 | . . . 1 Misdirections 1 | . . . 1 Overload Shots . | . . . . Overflow Damage 36 | . . . 36 Projectiles 5 | . . . 5 Explosions 31 | . . . 31 Melee . | . . . . Knockbacks . | . . . . Impact . | . . . . Kinetic . | . . . . Secondary . | . . . . Self-Inflicted Damage 268 | . . . 268 Shots 12 | . . . 12 Rammed 1 | . . . 1 Targets Rammed 3 | . . . 3 Kicked 2 | . . . 2 Crushed . | . . . . Highest Temperature 216 | . 163 36 216 Average Temperature 59 | . 80 14 60 Received Heat Transfer 1179 | . 153 129 897 Siege Activations . | . . . . Robots Corrupted 1 | . . . 1 Combat Hostiles 1 | . . . 1 Parts Fried 2 | . . . 2 Impact Corruptions . | . . . . Robots Melted . | . . . . Combat Hostiles . | . . . . Parts Melted . | . . . . Heat Transferred 1829 | . 370 385 1074 Parts Sabotaged . | . . . . Parts Stolen . | . . . . Parts Stripped . | . . . . Power Chain Reactions 8 | . 1 . 7 Alert | -11 -10 -9 -8 ------- Run | Yrd Mat Mat Mat Peak Influence 745 | . 136 137 745 Initial 46 | . . . 46 Average 228 | . 16 68 516 Maximum Alert Level 3 | . . . 3 Low Security (%) 63 | 100 100 100 8 Level 1 6 | . . . 16 Level 2 28 | . . . 70 Level 3 2 | . . . 5 Level 4 . | . . . . Level 5 . | . . . . High Security . | . . . . Max Security . | . . . . Squads Dispatched 9 | . 1 1 7 Investigation 2 | . . . 2 Extermination . | . . . . Reinforcement 6 | . 1 1 4 Assault 1 | . . . 1 Garrison . | . . . . Intercept . | . . . . Searches Triggered . | . . . . Construction Impeded 2 | . . . 2 Haulers Reinforced . | . . . . Active Scanning Responses . | . . . . Cargo Convoy Interrupts . | . . . . Stealth | -11 -10 -9 -8 --------- Run | Yrd Mat Mat Mat Distress Signals 6 | . 2 . 4 Communications Jammed . | . . . . Distress Signals . | . . . . Times Spotted 75 | . 12 8 55 Peak Tracking Total 9 | . 3 3 9 Tactical Retreats 5 | . . 1 4 Traps | -11 -10 -9 -8 ------- Run | Yrd Mat Mat Mat Traps Triggered . | . . . . Indirectly . | . . . . Trap Hack Attempts . | . . . . Triggered . | . . . . Disarmed . | . . . . Reprogrammed . | . . . . Reused . | . . . . Traps Extracted . | . . . . Installed . | . . . . Triggered 1 | . . . 1 Machines | -11 -10 -9 -8 ---------- Run | Yrd Mat Mat Mat Machines Disabled 6 | . . . 6 Max in Single Turn 2 | . . . 2 Machines Repaired . | . . . . Machines Dismantled . | . . . . Machines Sabotaged . | . . . . Overloaded Fab Kills . | . . . . Hacking | -11 -10 -9 -8 --------- Run | Yrd Mat Mat Mat Machines Accessed 8 | . 5 1 2 Terminals 5 | . 3 1 1 Fabricators . | . . . . Repair Stations 2 | . 1 . 1 Recycling Units 1 | . 1 . . Scanalyzers . | . . . . Garrison Access . | . . . . Total Hacks 32 | . 20 5 7 Successful 20 | . 14 2 4 Failed 12 | . 6 3 3 Catastrophic 1 | . . 1 . Database Lockouts . | . . . . Manual 6 | . 1 4 1 Terminals 15 | . 9 5 1 Fabricators . | . . . . Repair Stations 11 | . 5 . 6 Recycling Units 6 | . 6 . . Scanalyzers . | . . . . Garrison Access . | . . . . Terminal Hacks 8 | . 6 2 . Record 3 | . 3 . . Robot Analysis 1 | . . 1 . Alert Level 1 | . 1 . . Dispatch Records 1 | . 1 . . Investigation Status 1 | . 1 . . Registered Components 1 | . . 1 . Fabricator Hacks . | . . . . Repair Station Hacks 8 | . 4 . 4 Scan Component 4 | . 2 . 2 Repair 4 | . 2 . 2 Recycling Unit Hacks 4 | . 4 . . Process 2 | . 2 . . Report Inventory 1 | . 1 . . Retrieve Matter 1 | . 1 . . Scanalyzer . | . . . . Garrison Access Hacks . | . . . . Unauthorized Hacks . | . . . . Terminals . | . . . . Fabricators . | . . . . Repair Stations . | . . . . Recycling Units . | . . . . Scanalyzers . | . . . . Garrison Access . | . . . . Data Cores Recovered . | . . . . Used . | . . . . Hacking Detections 7 | . 3 2 2 Full Trace Events 2 | . 1 . 1 Feedback Events . | . . . . Feedback Blocked . | . . . . Robot Schematics Acquired . | . . . . Robots Built . | . . . . Authchips . | . . . . Time . | . . . . Total Robot Build Rating . | . . . . Part Schematics Acquired . | . . . . Parts Built . | . . . . Authchips . | . . . . Time . | . . . . Total Part Build Rating . | . . . . Parts Repaired 4 | . 2 . 2 Time 104 | . 52 . 52 Parts Recycled . | . . . . Recycled Matter 78 | . 78 . . Retrieved Matter 78 | . 78 . . Retrieved Components . | . . . . Parts Scanalyzed . | . . . . Part Schematics Acquired . | . . . . Parts Damaged . | . . . . Bothacking | -11 -10 -9 -8 ------------ Run | Yrd Mat Mat Mat Used RIF Installer . | . . . . Robots Hacked . | . . . . Non-combat . | . . . . Combat . | . . . . Robot Hacks Applied . | . . . . Relay Couplers Released . | . . . . Fabnet Peak Effective % . | . . . . Robots Rewired . | . . . . Allies Hacked . | . . . . Hacks Repelled . | . . . . Allies | -11 -10 -9 -8 -------- Run | Yrd Mat Mat Mat Total Allies . | . . . . Largest Group . | . . . . Highest-Rated Group . | . . . . Highest-Rated Ally . | . . . . Total Orders . | . . . . Ally Attacks . | . . . . Total Damage . | . . . . Kills . | . . . . Allies Corrupted . | . . . . Allies Melted . | . . . . Intel | -11 -10 -9 -8 ------- Run | Yrd Mat Mat Mat Robot Analysis Total 1 | . . 1 . Derelict Logs Recovered . | . . . . Drone Launches . | . . . . Drone Recoveries . | . . . . Exploration | -11 -10 -9 -8 ------------- Run | Yrd Mat Mat Mat Turns Passed 3215 | 211 952 758 1294 Spaces Moved 1377 | 115 442 362 458 Core 4 | 3 . . 1 Treads 1059 | 112 442 362 143 Legs 314 | . . . 314 Wheels . | . . . . Hover . | . . . . Flight . | . . . . Fastest Speed 50 | 50 160 160 160 Average Speed 171 | 157 160 160 194 Slowest Speed 800 | 160 160 160 800 Overloaded Moves . | . . . . Propulsion Burnouts . | . . . . Robots Hopped . | . . . . Cave-ins Triggered . | . . . . Exploration Rate (%) 27 | 6 40 27 37 Regions Visited 3 Branch Regions . Pre-discovered Areas . | . . . . Known Exits Taken . | . . . . Unknown Exits Taken 3 | 1 1 1 . Scrap Searched . | . . . . Spaces Dug 55 | . . . 55 Terrain Destroyed 183 | . 6 . 177 Melee . | . . . . Projectile 2 | . . . 2 AOE 181 | . 6 . 175 Terrain Rammed . | . . . . Walls Destroyed . | . . . . Machines Disabled . | . . . . Actions | -11 -10 -9 -8 --------- Run | Yrd Mat Mat Mat Total 2013 | 142 652 506 713 Wait 368 | 16 161 91 100 Move 1374 | 114 441 361 458 Hop . | . . . . Pick Up 59 | 5 16 14 24 Fast Attach 12 | 6 3 1 2 Attach 19 | . . 3 16 Detach . | . . . . Swap 28 | 1 3 3 21 Drop 27 | . 7 13 7 Fire 123 | . 21 20 82 Melee . | . . . . Ram . | . . . . Kick 2 | . . . 2 Crush 1 | . . . 1 Escape Stasis . | . . . . Rewire . | . . . . Trap . | . . . . Miscellaneous . | . . . . Route ------- -11/Scrapyard -10/Materials -9/Materials -8/Materials History --------- Turn | Location | Event 57 | -11/Scrapyard | Discovered new exit (range 16) 212 | -11/Scrapyard | Entered Materials 308 | -10/Materials | Build established: Mutant 1054 | -10/Materials | Discovered new exit (range 8) 1098 | -10/Materials | Repaired Lgt. Treads 1125 | -10/Materials | Repaired Lgt. Treads 1164 | -10/Materials | Entered another Materials area 1164 | -9/Materials | Evolved 2 slots: Propulsion x1, Utility x1 1882 | -9/Materials | Discovered new exit (range 16) 1922 | -9/Materials | Entered another Materials area 1922 | -8/Materials | Evolved 2 slots: Propulsion x1, Utility x1 2224 | -8/Materials | Build established: Scavenger-Mutant 2381 | -8/Materials | Lost 5 parts (3n1u1w) 2620 | -8/Materials | Build established: Mutant 2664 | -8/Materials | System corruption reached 10% 2970 | -8/Materials | Repaired Aluminum Leg 2997 | -8/Materials | Repaired Aluminum Leg 3122 | -8/Materials | First assault squad dispatched 3183 | -8/Materials | Core integrity fell below 50% 3203 | -8/Materials | Core integrity fell below 20% 3216 | -8/Materials | Destroyed by L-31 Rogue with Katana Last Messages --------------- Aluminum Leg destroyed. Mining Laser severed. K-01 Serf collects debris. Aluminum Leg destroyed. K-01 Serf collects debris. Hvy. Ion Cannon destroyed. K-01 Serf collects debris. L-31 Rogue destroyed. The unstable cave ceiling collapses. K-01 Serf collects debris. Imp. Targeting Computer destroyed. System corrupted: Energy discharge (-13). U-05 Engineer lays Concrete. Critical hit (Burn: +37). Imp. Ion Engine destroyed. U-05 Engineer lays Concrete. K-01 Serf collects debris. Acquired 32 matter. U-05 Engineer lays Concrete. K-01 Serf collects debris. Map ----- +----------------------------------------------------+ | +??????????????????????## # ????????##+####????? | | ???????????????????????## # ""??????# ?????? | | ???????????????????????## # "T????????? ???????? | | ???????????????????????## # "?????????? ???????? | | ##########?????????????## # ??????????? ???????? | | #???########??## + ??????????? ???????? | | #???# ######## # ???????????????????? | | #####+###### ## # ???????????????????? | | #! # ! ## ##???????????????????? | | # " ## [ #= #???????????????????? | | # """" # # #???????????????????? | | # """" # + T #???????????????????? | | # # """# #???????????????????? | | % # # """# #???????????????????? | | # [ # [ """# #####???????????????????? | | # ## # #???????????????????????? | | =# [ ! ########## #???????????????????????? | | ######### ##??????# #???????????????????????? | | ????##### #???????#u#???????????????????????? | | ???????## ##?????#?# #???????????????????????? | | ???????# ??????# # #???????????????????????? | | ???????# ##????## # ###?????????????????????? | | ???????## ####?????# ##????????????????????? | | ????????####????????# ###????????????????????? | | ????????????????????# *l ##????????????????????? | | ????????????????????# =|@ ##????????????????????? | | ????????????????????# k%k #????????????????????? | | ???????????????????# ri #????????????????????? | | ???????????????????# gr ##????????????????????? | | ?????????????????? % ##?????????????????????? | | ???????????????? #??????????????????????? | | ?????????????? #??????????????????????? | | ?????????????###### ##??????????????????????? | | ??????????????????#######????????????????????????? | | ?????????????????????????????????????????????????? | | ?????????????????????????????????????????????????? | | ?????????????????????????????????????????????????? | | ?????????????????????????????????????????????????? | | ?????????????????????????????????????????????????? | | ?????????????????????????????????????????????????? | | ?????????????????????????????????????????????????? | | ?????????????????????????????????????????????????? | | ?????????????????????????????????????????????????? | | ?????????????????????????????????????????????????? | | ?????????????????????????????????????????????????? | | ?????????????????????????????????????????????????? | | ?????????????????????????????????????????????????? | | ?????????????????????????????????????????????????? | | ?????????????????????????????????????????????????? | | ?????????????????????????????????????????????????? | +----------------------------------------------------+ Best States ------------- Heat Dissipation 31 Energy Generation 12 Energy Capacity 265 Matter Stores 300 Matter Capacity 300 Sight Range 16 Terrain Scan Density 10 Evasion (%) 40 Targeting Accuracy 14 Recoil Reduction 4 Item Schematics ----------------- None Robot Schematics ------------------ None Fabricated ------------ Nothing Alien Tech Used ----------------- None Achievements -------------- Let's See Who's Tougher Maybe Next Time I'll Detach My Launcher Significant Disruption Challenges ------------ None Game ------ Seed CooledNullMatrix Manual? 0 Play Time 01:03:36 Cumulative 6.2 hours Start 2024.04.14 @ 12:46:05 End 2024.04.14 @ 18:05:00 Sessions 5 Manual Loads 0 Difficulty Rogue Special Mode None Game No. 8 Rogue 8 Adventurer 0 Explorer 0 Win Type - Total 0 Types 0/0/0/0/0/0/0/0/0 Lore% 3 Gallery% 11 Achievement% 9 Wizard Run 0 Options --------- Layout 1 ASCII 0 Keyboard 0 Movement Mouse Keybinds 0 Fullscreen 2 Font 24/Smallcaps Map View 50x35 Zoom Use 0% Tactical HUD 0 Map Filters NONE Filters NONE Steam 1 RUN: 32ec5438-484e-485a-b9dc-8da5716de20d